lending/lending_fUSD_20240710
["ID","MTS","AMOUNT","RATE_DAILY","PERIOD"]
[331649394,1720605041383,-500.0,0.00013698,2]
[331649395,1720605041393,-1436.15,0.00013698,2]
[331649396,1720605041403,-500.0,0.00013698,2]
[331649397,1720605041412,-500.0,0.00013698,2]
[331649398,1720605041422,-649.98,0.00013698,2]
[331649399,1720605041431,-500.0,0.00013698,2]
[331649400,1720605041440,-500.0,0.00013698,2]
[331649401,1720605041450,-500.0,0.00013698,2]
[331649402,1720605041459,-500.0,0.00013698,2]
[331649403,1720605041470,-1443.66,0.00013698,2]
[331649404,1720605041483,-1092.49,0.00013698,2]
[331649405,1720605041494,-1671.66,0.00013698,2]
[331649406,1720605041504,-500.0,0.00013698,2]
[331649407,1720605041514,-1450.59,0.00013698,2]
[331649408,1720605041526,-500.0,0.00013698,2]
[331649409,1720605041536,-500.0,0.00013698,2]
[331649410,1720605041546,-813.67,0.00013698,2]
[331649411,1720605041556,-500.0,0.00013698,2]
[331649412,1720605041566,-606.93,0.00013698,2]
[331649413,1720605041576,-500.0,0.00013698,2]
[331649414,1720605041585,-500.0,0.00013698,2]
[331649415,1720605041595,-500.0,0.00013698,2]
[331649416,1720605041604,-1360.4,0.00013698,2]
[331649417,1720605041614,-871.89,0.00013698,2]
[331649418,1720605041623,-915.68,0.00013698,2]
[331649419,1720605041633,-500.0,0.00013698,2]
[331649420,1720605041643,-500.0,0.00013698,2]
[331649421,1720605041652,-500.0,0.00013698,2]
[331649422,1720605041662,-500.0,0.00013698,2]
[331649423,1720605041671,-500.0,0.00013698,2]
[331649424,1720605041681,-500.0,0.00013698,2]
[331649425,1720605041691,-500.0,0.00013698,2]
[331649426,1720605041701,-500.0,0.00013698,2]
[331649427,1720605041710,-500.0,0.00013698,2]
[331649428,1720605041720,-976.42,0.00013698,2]
[331649429,1720605041730,-500.0,0.00013698,2]
[331649430,1720605041740,-636.58,0.00013698,2]
[331649431,1720605041749,-1002.05,0.00013698,2]
[331649432,1720605041759,-500.0,0.00013698,2]
[331649433,1720605041768,-500.0,0.00013698,2]
[331649434,1720605041778,-500.0,0.00013698,2]
[331649435,1720605041788,-991.76,0.00013698,2]
[331649436,1720605041797,-500.0,0.00013698,2]
[331649437,1720605041807,-500.0,0.00013698,2]
[331649438,1720605041817,-553.22,0.00013698,2]
[331649439,1720605041826,-562.34,0.00013698,2]
[331649440,1720605041835,-500.0,0.00013698,2]
[331649441,1720605041845,-543.73,0.00013698,2]
[331649442,1720605041854,-500.0,0.00013698,2]
[331649443,1720605041864,-434.21705469,0.00013698,2]
[331649444,1720605041874,-500.0,0.00013698,2]
[331649445,1720605041883,-500.0,0.00013698,2]
[331649446,1720605041893,-616.17,0.00013698,2]
[331649447,1720605041903,-500.0,0.00013698,2]
[331649448,1720605041913,-500.0,0.00013698,2]
[331649449,1720605041922,-500.0,0.00013698,2]
[331649450,1720605041932,-1586.1,0.00013698,2]
[331649451,1720605041942,-1006.17,0.00013698,2]
[331649452,1720605041952,-500.0,0.00013698,2]
[331649453,1720605041962,-500.0,0.00013698,2]
[331649454,1720605041972,-500.0,0.00013698,2]
[331649455,1720605041983,-513.37,0.00013698,2]
[331649456,1720605041994,-701.68,0.00013698,2]
[331649457,1720605042004,-500.0,0.00013698,2]
[331649458,1720605042013,-1108.96,0.00013698,2]
[331649459,1720605042023,-554.38,0.00013698,2]
[331649460,1720605042032,-500.0,0.00013698,2]
[331649461,1720605042042,-500.0,0.00013698,2]
[331649462,1720605042051,-500.0,0.00013698,2]
[331649463,1720605042060,-500.0,0.00013698,2]
[331649464,1720605042071,-1197.21,0.00013698,2]
[331649465,1720605042084,-521.59,0.00013698,2]
[331649466,1720605042094,-500.0,0.00013698,2]
[331649467,1720605042104,-500.0,0.00013698,2]
[331649468,1720605042114,-500.0,0.00013698,2]
[331649469,1720605042124,-500.0,0.00013698,2]
[331649470,1720605042135,-999.22,0.00013698,2]
[331649471,1720605042145,-500.0,0.00013698,2]
[331649472,1720605042155,-500.0,0.00013698,2]
[331649473,1720605042164,-500.0,0.00013698,2]
[331649474,1720605042174,-536.89,0.00013698,2]
[331649475,1720605042183,-500.0,0.00013698,2]
[331649476,1720605042193,-1000.0,0.00013698,2]
[331649477,1720605042204,-500.0,0.00013698,2]
[331649478,1720605042213,-270.80879563,0.00013698,2]
[331649480,1720605042223,-500.0,0.00013698,2]
[331649482,1720605042233,-500.0,0.00013698,2]
[331649483,1720605042242,-500.0,0.00013698,2]
[331649485,1720605042252,-500.0,0.00013698,2]
[331649487,1720605042262,-500.0,0.00013698,2]
[331649489,1720605042272,-792.38,0.00013698,2]
[331649491,1720605042282,-565.73,0.00013698,2]
[331649493,1720605042291,-500.0,0.00013698,2]
[331649495,1720605042301,-500.0,0.00013698,2]
[331649497,1720605042311,-528.91,0.00013698,2]
[331649499,1720605042320,-500.0,0.00013698,2]
[331649501,1720605042331,-500.0,0.00013698,2]
[331649503,1720605042340,-500.0,0.00013698,2]
[331649505,1720605042349,-500.0,0.00013698,2]
[331649506,1720605042359,-812.24,0.00013698,2]
[331649507,1720605042370,-500.0,0.00013698,2]
[331649508,1720605042379,-607.47,0.00013698,2]
[331649510,1720605042389,-500.0,0.00013698,2]
[331649511,1720605042398,-1231.83,0.00013698,2]
[331649512,1720605042407,-500.0,0.00013698,2]
[331649513,1720605042417,-1674.57,0.00013698,2]
[331649514,1720605042426,-500.0,0.00013698,2]
[331649515,1720605042436,-1279.24,0.00013698,2]
[331649516,1720605042446,-651.76,0.00013698,2]
[331649517,1720605042455,-604.38,0.00013698,2]
[331649518,1720605042466,-1566.61,0.00013698,2]
[331649519,1720605042476,-500.0,0.00013698,2]
[331649521,1720605042488,-571.14,0.00013698,2]
[331649523,1720605042498,-754.22,0.00013698,2]
[331649525,1720605042508,-1153.57,0.00013698,2]
[331649527,1720605042517,-500.0,0.00013698,2]
[331649528,1720605042528,-764.39,0.00013698,2]
[331649529,1720605042539,-500.0,0.00013698,2]
[331649530,1720605042549,-500.0,0.00013698,2]
[331649531,1720605042559,-500.0,0.00013698,2]
[331649532,1720605042568,-500.0,0.00013698,2]
[331649533,1720605042578,-500.0,0.00013698,2]
[331649534,1720605042587,-500.0,0.00013698,2]
[331649535,1720605042597,-1210.27,0.00013698,2]
[331649536,1720605042607,-590.75,0.00013698,2]
[331649537,1720605042616,-500.0,0.00013698,2]
[331649538,1720605042626,-1511.87,0.00013698,2]
[331649539,1720605042640,-500.0,0.00013698,2]
[331649540,1720605042649,-500.0,0.00013698,2]
[331649541,1720605042659,-971.13,0.00013698,2]
[331649542,1720605042669,-500.0,0.00013698,2]
[331649543,1720605042679,-1120.01,0.00013698,2]
[331649544,1720605042690,-787.47,0.00013698,2]
[331649545,1720605042699,-500.0,0.00013698,2]
[331649546,1720605042709,-500.0,0.00013698,2]
[331649547,1720605042719,-500.0,0.00013698,2]
[331649548,1720605042730,-500.0,0.00013698,2]
[331649549,1720605042740,-528.69,0.00013698,2]
[331649550,1720605042750,-500.0,0.00013698,2]
[331649551,1720605042762,-789.45,0.00013698,2]
[331649552,1720605042772,-1000.46,0.00013698,2]
[331649553,1720605042782,-500.0,0.00013698,2]
[331649554,1720605042791,-500.0,0.00013698,2]
[331649561,1720605043209,-500.0,0.00013698,2]
[331649564,1720605043228,-500.0,0.00013698,2]
[331649566,1720605043239,-1569.65,0.00013698,2]
[331649568,1720605043249,-500.0,0.00013698,2]
[331649570,1720605043259,-616.93,0.00013698,2]
[331649571,1720605043269,-542.3,0.00013698,2]
[331649572,1720605043279,-500.0,0.00013698,2]
[331649573,1720605043289,-948.91,0.00013698,2]
[331649574,1720605043300,-500.0,0.00013698,2]
[331649575,1720605043309,-643.36,0.00013698,2]
[331649576,1720605043319,-643.43,0.00013698,2]
[331649577,1720605043328,-500.0,0.00013698,2]
[331649578,1720605043338,-500.0,0.00013698,2]
[331649579,1720605043348,-531.02,0.00013698,2]
[331649580,1720605043357,-952.15,0.00013698,2]
[331649581,1720605043367,-500.0,0.00013698,2]
[331649582,1720605043376,-1377.05,0.00013698,2]
[331649583,1720605043385,-500.0,0.00013698,2]
[331649584,1720605043395,-503.38,0.00013698,2]
[331649585,1720605043404,-1702.42,0.00013698,2]
[331649586,1720605043414,-1506.19,0.00013698,2]
[331649587,1720605043424,-656.03,0.00013698,2]
[331649588,1720605043433,-500.0,0.00013698,2]
[331649589,1720605043443,-500.0,0.00013698,2]
[331649590,1720605043453,-500.0,0.00013698,2]
[331649591,1720605043462,-1039.74,0.00013698,2]
[331649592,1720605043472,-500.0,0.00013698,2]
[331649593,1720605043484,-717.52,0.00013698,2]
[331649594,1720605043494,-859.44,0.00013698,2]
[331649595,1720605043504,-500.0,0.00013698,2]
[331649596,1720605043514,-858.09,0.00013698,2]
[331649597,1720605043523,-747.51,0.00013698,2]
[331649598,1720605043534,-500.0,0.00013698,2]
[331649599,1720605043545,-500.0,0.00013698,2]
[331649600,1720605043555,-1077.14,0.00013698,2]
[331649601,1720605043564,-500.0,0.00013698,2]
[331649602,1720605043573,-877.95,0.00013698,2]
[331649603,1720605043583,-1001.11,0.00013698,2]
[331649604,1720605043592,-501.85,0.00013698,2]
[331649605,1720605043601,-500.0,0.00013698,2]
[331649606,1720605043611,-409.09218726,0.00013698,2]
[331649607,1720605043620,-500.0,0.00013698,2]
[331649608,1720605043631,-500.0,0.00013698,2]
[331649609,1720605043641,-580.78,0.00013698,2]
[331649610,1720605043651,-805.57,0.00013698,2]
[331649611,1720605043662,-1140.04,0.00013698,2]
[331649612,1720605043672,-500.0,0.00013698,2]
[331649613,1720605043682,-995.6,0.00013698,2]
[331649614,1720605043692,-500.0,0.00013698,2]
[331649615,1720605043703,-500.0,0.00013698,2]
[331649616,1720605043714,-568.7,0.00013698,2]
[331649617,1720605043724,-787.74,0.00013698,2]
[331649618,1720605043736,-500.0,0.00013698,2]
[331649619,1720605043745,-649.52,0.00013698,2]
[331649620,1720605043755,-500.0,0.00013698,2]
[331649621,1720605043766,-490.73722856,0.00013698,5]
[331649622,1720605043776,-500.0,0.00013698,2]
[331649623,1720605043787,-500.0,0.00013698,2]
[331649624,1720605043797,-500.0,0.00013698,2]
[331649625,1720605043807,-500.0,0.00013698,2]
[331649626,1720605043817,-500.0,0.00013698,2]
[331649627,1720605043827,-1136.87,0.00013698,2]
[331649628,1720605043836,-879.79,0.00013698,2]
[331649629,1720605043846,-500.0,0.00013698,2]
[331649630,1720605043855,-500.0,0.00013698,2]
[331649631,1720605043865,-500.0,0.00013698,2]
[331649632,1720605043875,-336.91245264,0.00013698,2]
[331649633,1720605043884,-500.0,0.00013698,2]
[331649634,1720605043894,-500.0,0.00013698,2]
[331649635,1720605043904,-500.0,0.00013698,2]
[331649636,1720605043913,-710.38,0.00013698,2]
[331649637,1720605043923,-500.0,0.00013698,2]
[331649638,1720605043933,-500.0,0.00013698,2]
[331649639,1720605043942,-500.0,0.00013698,2]
[331649640,1720605043952,-500.0,0.00013698,2]
[331649641,1720605043962,-535.05,0.00013698,2]
[331649642,1720605043971,-500.0,0.00013698,2]
[331649643,1720605043982,-500.0,0.00013698,2]
[331649644,1720605043992,-1306.84,0.00013698,2]
[331649645,1720605044002,-929.55,0.00013698,2]
[331649646,1720605044012,-500.0,0.00013698,2]
[331649647,1720605044021,-505.7338242,0.00013698,2]
[331649648,1720605044031,-500.0,0.00013698,2]
[331649649,1720605044041,-500.0,0.00013698,2]
[331649650,1720605044050,-500.0,0.00013698,2]
[331649651,1720605044060,-500.0,0.00013698,2]
[331649652,1720605044070,-1630.76,0.00013698,2]
[331649653,1720605044079,-500.0,0.00013698,2]
[331649654,1720605044089,-500.0,0.00013698,2]
[331649655,1720605044098,-1131.4,0.00013698,2]
[331649656,1720605044108,-1328.38,0.00013698,2]
[331649657,1720605044117,-597.83,0.00013698,2]
[331649658,1720605044127,-500.0,0.00013698,2]
[331649659,1720605044137,-501.61146599,0.00013698,2]
[331649660,1720605044147,-500.0,0.00013698,2]
[331649661,1720605044157,-767.37,0.00013698,2]
[331649662,1720605044166,-966.15,0.00013698,2]
[331649663,1720605044176,-500.0,0.00013698,2]
[331649664,1720605044185,-646.86,0.00013698,2]
[331649665,1720605044195,-874.81,0.00013698,2]
[331649666,1720605044205,-500.0,0.00013698,2]
[331649667,1720605044214,-1232.56,0.00013698,2]
[331649668,1720605044225,-1021.55,0.00013698,2]
[331649669,1720605044236,-500.0,0.00013698,2]
[331649670,1720605044245,-849.62,0.00013698,2]
[331649671,1720605044254,-500.0,0.00013698,2]
[331649672,1720605044263,-980.47,0.00013698,2]
[331649673,1720605044272,-500.0,0.00013698,2]
[331649674,1720605044281,-500.0,0.00013698,2]
[331649675,1720605044291,-500.0,0.00013698,2]
[331649676,1720605044300,-500.0,0.00013698,2]
[331649677,1720605044310,-907.24,0.00013698,2]
[331649678,1720605044319,-680.06,0.00013698,2]
[331649679,1720605044329,-1023.58,0.00013698,2]
[331649680,1720605044339,-979.79,0.00013698,2]
[331649681,1720605044349,-1215.54,0.00013698,2]
[331649682,1720605044358,-500.0,0.00013698,2]
[331649683,1720605044368,-1158.89,0.00013698,2]
[331649684,1720605044378,-665.03,0.00013698,2]
[331649685,1720605044387,-500.0,0.00013698,2]
[331649686,1720605044397,-500.0,0.00013698,2]
[331649687,1720605044408,-637.3,0.00013698,2]
[331649688,1720605044417,-1369.86,0.00013698,2]
[331649689,1720605044427,-500.0,0.00013698,2]
[331649690,1720605044437,-500.0,0.00013698,2]
[331649691,1720605044446,-500.0,0.00013698,2]
[331649692,1720605044456,-531.3,0.00013698,2]
[331649693,1720605044465,-500.0,0.00013698,2]
[331649694,1720605044476,-555.33,0.00013698,2]
[331649695,1720605044489,-814.19,0.00013698,2]
[331649696,1720605044499,-500.0,0.00013698,2]
[331649697,1720605044508,-528.35,0.00013698,2]
[331649698,1720605044518,-5795.8,0.00013698,2]
[331649699,1720605044528,-500.0,0.00013698,2]
[331649700,1720605044537,-1519.46,0.00013698,2]
[331649701,1720605044546,-554.32,0.00013698,2]
[331649702,1720605044556,-500.0,0.00013698,2]
[331649703,1720605044566,-500.0,0.00013698,2]
[331649704,1720605044575,-500.0,0.00013698,2]
[331649705,1720605044585,-500.0,0.00013698,2]
[331649706,1720605044595,-500.0,0.00013698,2]
[331649707,1720605044605,-500.0,0.00013698,2]
[331649708,1720605044615,-2059.7,0.00013698,2]
[331649709,1720605044625,-772.77,0.00013698,2]
[331649710,1720605044636,-500.0,0.00013698,2]
[331649711,1720605044646,-500.0,0.00013698,2]
[331649712,1720605044656,-1145.38,0.00013698,2]
[331649713,1720605044666,-500.0,0.00013698,2]
[331649714,1720605044676,-500.0,0.00013698,2]
[331649715,1720605044686,-500.0,0.00013698,2]
[331649716,1720605044695,-1181.31,0.00013698,2]
[331649717,1720605044705,-1444.38,0.00013698,2]
[331649718,1720605044714,-933.37,0.00013698,2]
[331649719,1720605044724,-500.0,0.00013698,2]
[331649720,1720605044734,-500.0,0.00013698,2]
[331649721,1720605044744,-500.0,0.00013698,2]
[331649722,1720605044754,-1114.96,0.00013698,2]
[331649723,1720605044763,-500.0,0.00013698,2]
[331649724,1720605044773,-1590.89,0.00013698,2]
[331649725,1720605044783,-500.0,0.00013698,2]
[331649726,1720605044792,-500.0,0.00013698,2]
[331649727,1720605044802,-500.0,0.00013698,2]
[331649728,1720605044812,-652.36,0.00013698,2]
[331649729,1720605044822,-517.97,0.00013698,2]
[331649730,1720605044831,-612.31,0.00013698,2]
[331649731,1720605044841,-500.0,0.00013698,2]
[331649732,1720605044850,-511.26,0.00013698,2]
[331649733,1720605044860,-713.22,0.00013698,2]
[331649734,1720605044870,-500.0,0.00013698,2]
[331649735,1720605044880,-751.3,0.00013698,2]
[331649736,1720605044891,-564.35,0.00013698,2]
[331649737,1720605044901,-500.0,0.00013698,2]
[331649738,1720605044911,-500.0,0.00013698,2]
[331649739,1720605044922,-500.0,0.00013698,2]
[331649740,1720605044934,-500.0,0.00013698,2]
[331649741,1720605044944,-1412.68,0.00013698,2]
[331649742,1720605044953,-999.09,0.00013698,2]
[331649743,1720605044963,-833.45,0.00013698,2]
[331649744,1720605044973,-601.04,0.00013698,2]
[331649745,1720605044983,-741.36,0.00013698,2]
[331649746,1720605044993,-866.04,0.00013698,2]
[331649747,1720605045004,-1547.93,0.00013698,2]
[331649748,1720605045015,-500.0,0.00013698,2]
[331649749,1720605045025,-500.0,0.00013698,2]
[331649750,1720605045035,-500.0,0.00013698,2]
[331649751,1720605045045,-500.0,0.00013698,2]
[331649752,1720605045055,-789.08,0.00013698,2]
[331649753,1720605045064,-500.0,0.00013698,2]
[331649754,1720605045074,-3440.96,0.00013698,2]
[331649755,1720605045084,-500.0,0.00013698,2]
[331649756,1720605045093,-500.0,0.00013698,2]
[331649757,1720605045103,-1543.63,0.00013698,2]
[331649758,1720605045113,-500.0,0.00013698,2]
[331649759,1720605045123,-500.0,0.00013698,2]
[331649760,1720605045134,-842.42,0.00013698,2]
[331649761,1720605045149,-916.54,0.00013698,2]
[331649762,1720605045159,-500.0,0.00013698,2]
[331649763,1720605045169,-500.0,0.00013698,2]
[331649764,1720605045178,-500.0,0.00013698,2]
[331649765,1720605045188,-500.0,0.00013698,2]
[331649766,1720605045197,-5458.33,0.00013698,2]
[331649768,1720605045208,-557.85,0.00013698,2]
[331649770,1720605045218,-500.0,0.00013698,2]
[331649772,1720605045228,-715.29,0.00013698,2]
[331649773,1720605045240,-815.67,0.00013698,2]
[331649774,1720605045250,-500.0,0.00013698,2]
[331649775,1720605045260,-999.33,0.00013698,2]
[331649776,1720605045270,-906.89,0.00013698,2]
[331649777,1720605045283,-500.0,0.00013698,2]
[331649778,1720605045293,-500.0,0.00013698,2]
[331649779,1720605045302,-614.57,0.00013698,2]
[331649780,1720605045311,-1152.64,0.00013698,2]
[331649781,1720605045322,-553.89,0.00013698,2]
[331649782,1720605045331,-772.33,0.00013698,2]
[331649783,1720605045340,-919.61,0.00013698,2]
[331649784,1720605045349,-500.0,0.00013698,2]
[331649785,1720605045359,-500.0,0.00013698,2]
[331649786,1720605045369,-500.0,0.00013698,2]
[331649787,1720605045378,-500.0,0.00013698,2]
[331649788,1720605045388,-500.0,0.00013698,2]
[331649789,1720605045398,-500.0,0.00013698,2]
[331649790,1720605045407,-1438.4,0.00013698,2]
[331649791,1720605045418,-500.0,0.00013698,2]
[331649792,1720605045428,-545.75,0.00013698,2]
[331649793,1720605045438,-621.39,0.00013698,2]
[331649794,1720605045447,-658.54,0.00013698,2]
[331649795,1720605045458,-500.0,0.00013698,2]
[331649796,1720605045467,-666.45,0.00013698,2]
[331649797,1720605045477,-500.0,0.00013698,2]
[331649798,1720605045488,-500.0,0.00013698,2]
[331649799,1720605045499,-500.0,0.00013698,2]
[331649800,1720605045508,-500.0,0.00013698,2]
[331649801,1720605045518,-871.11,0.00013698,2]
[331649802,1720605045529,-2861.5,0.00013698,2]
[331649803,1720605045539,-500.0,0.00013698,2]
[331649804,1720605045548,-1111.47,0.00013698,2]
[331649805,1720605045558,-952.72,0.00013698,2]
[331649806,1720605045568,-500.0,0.00013698,2]
[331649807,1720605045578,-1042.92,0.00013698,2]
[331649808,1720605045588,-500.0,0.00013698,2]
[331649809,1720605045598,-682.79,0.00013698,2]
[331649810,1720605045691,-1266.97,0.00013698,2]
[331649811,1720605045701,-500.0,0.00013698,2]
[331649812,1720605045710,-500.0,0.00013698,2]
[331649813,1720605045720,-500.0,0.00013698,2]
[331649814,1720605045730,-1819.25,0.00013698,2]
[331649815,1720605045740,-762.86,0.00013698,2]
[331649816,1720605045749,-557.3,0.00013698,2]
[331649817,1720605045759,-730.77,0.00013698,2]
[331649818,1720605045769,-500.0,0.00013698,2]
[331649819,1720605045779,-500.0,0.00013698,2]
[331649820,1720605045788,-500.0,0.00013698,2]
[331649821,1720605045797,-1807.11,0.00013698,2]
[331649822,1720605045807,-581.96,0.00013698,2]
[331649823,1720605045816,-500.0,0.00013698,2]
[331649824,1720605045827,-500.0,0.00013698,2]
[331649825,1720605045837,-500.0,0.00013698,2]
[331649826,1720605045847,-568.64,0.00013698,2]
[331649827,1720605045857,-1159.96,0.00013698,2]
[331649828,1720605045867,-590.51,0.00013698,2]
[331649829,1720605045877,-500.0,0.00013698,2]
[331649830,1720605045887,-500.0,0.00013698,2]
[331649831,1720605045896,-500.0,0.00013698,2]
[331649832,1720605045905,-960.56,0.00013698,2]
[331649833,1720605045915,-500.0,0.00013698,2]
[331649834,1720605045925,-582.97,0.00013698,2]
[331649835,1720605045935,-508.22,0.00013698,2]
[331649836,1720605045944,-1099.97,0.00013698,2]
[331649837,1720605045954,-500.0,0.00013698,2]
[331649838,1720605045966,-500.0,0.00013698,2]
[331649839,1720605045976,-524.11,0.00013698,2]
[331649840,1720605045987,-500.0,0.00013698,2]
[331649841,1720605045996,-734.05,0.00013698,2]
[331649842,1720605046007,-1046.15,0.00013698,2]
[331649843,1720605046016,-500.0,0.00013698,2]
[331649844,1720605046026,-500.0,0.00013698,2]
[331649845,1720605046035,-500.0,0.00013698,2]
[331649846,1720605046044,-830.8,0.00013698,2]
[331649847,1720605046054,-500.0,0.00013698,2]
[331649848,1720605046063,-891.96,0.00013698,2]
[331649849,1720605046073,-500.0,0.00013698,2]
[331649850,1720605046082,-639.04,0.00013698,2]
[331649851,1720605046092,-500.0,0.00013698,2]
[331649852,1720605046101,-500.0,0.00013698,2]
[331649853,1720605046111,-949.3,0.00013698,2]
[331649854,1720605046121,-500.0,0.00013698,2]
[331649856,1720605046130,-791.2,0.00013698,2]
[331649858,1720605046140,-500.0,0.00013698,2]
[331649859,1720605046150,-500.0,0.00013698,2]
[331649860,1720605046160,-500.0,0.00013698,2]
[331649861,1720605046169,-1018.54,0.00013698,2]
[331649862,1720605046180,-227.91859922,0.00013698,2]
[331649863,1720605046189,-757.71,0.00013698,2]
[331649864,1720605046199,-840.1,0.00013698,2]
[331649865,1720605046208,-2483.03,0.00013698,2]
[331649866,1720605046217,-500.0,0.00013698,2]
[331649867,1720605046227,-500.0,0.00013698,2]
[331649868,1720605046239,-756.52,0.00013698,2]
[331649869,1720605046248,-9158.35,0.00013698,2]
[331649870,1720605046257,-575.93,0.00013698,2]
[331649871,1720605046267,-530.45756869,0.00013698,2]
[331649872,1720605046276,-550.3,0.00013698,2]
[331649873,1720605046285,-500.0,0.00013698,2]
[331649874,1720605046295,-605.34,0.00013698,2]
[331649875,1720605046304,-500.0,0.00013698,2]
[331649876,1720605046314,-1726.15,0.00013698,2]
[331649877,1720605046323,-500.0,0.00013698,2]
[331649878,1720605046334,-1106.16,0.00013698,2]
[331649879,1720605046343,-1373.27,0.00013698,2]
[331649880,1720605046353,-500.0,0.00013698,2]
[331649881,1720605046362,-500.0,0.00013698,2]
[331649882,1720605046372,-500.0,0.00013698,2]
[331649883,1720605046381,-500.0,0.00013698,2]
[331649884,1720605046391,-500.0,0.00013698,2]
[331649885,1720605046400,-500.0,0.00013698,2]
[331649886,1720605046410,-567.08,0.00013698,2]
[331649887,1720605046419,-1217.13,0.00013698,2]
[331649888,1720605046428,-500.0,0.00013698,2]
[331649889,1720605046437,-648.75,0.00013698,2]
[331649890,1720605046447,-500.0,0.00013698,2]
[331649891,1720605046456,-557.61,0.00013698,2]
[331649892,1720605046465,-500.0,0.00013698,2]
[331649893,1720605046475,-500.0,0.00013698,2]
[331649894,1720605046486,-598.3,0.00013698,2]
[331649895,1720605046497,-500.0,0.00013698,2]
[331649896,1720605046507,-500.0,0.00013698,2]
[331649897,1720605046516,-500.0,0.00013698,2]
[331649898,1720605046526,-1036.77,0.00013698,2]
[331649899,1720605046536,-1201.87,0.00013698,2]
[331649900,1720605046546,-239.59041394,0.00013698,2]
[331649901,1720605046556,-629.58,0.00013698,2]
[331649902,1720605046566,-1371.24,0.00013698,2]
[331649903,1720605046575,-500.0,0.00013698,2]
[331649904,1720605046585,-500.0,0.00013698,2]
[331649905,1720605046595,-500.0,0.00013698,2]
[331649906,1720605046605,-500.0,0.00013698,2]
[331649907,1720605046615,-539.25,0.00013698,2]
[331649908,1720605046624,-200.0,0.00013699,2]
[331649909,1720605046634,-1441.3,0.00013699,2]
[331649910,1720605046643,-7152.99,0.00013699,2]
[331649911,1720605046652,-2327.67,0.00013699,2]
[331649912,1720605046662,-250.0,0.00013699,2]
[331649913,1720605046672,-2644.97,0.00013699,2]
[331649914,1720605046681,-2751.0,0.00013699,2]
[331649915,1720605046691,-173.98552993,0.00013699,2]
[331649916,1720605046702,-830.45399542,0.00013699,2]
[331649917,1720605046711,-1000.0,0.000137,2]
[331649918,1720605046721,-925.0,0.000137,2]
[331649919,1720605046731,-356.0,0.000137,2]
[331649920,1720605046742,-704.52,0.000137,2]
[331649921,1720605046751,-704.52,0.000137,2]
[331649922,1720605046761,-704.52,0.000137,2]
[331649923,1720605046770,-704.52,0.000137,2]
[331649924,1720605046779,-704.52,0.000137,2]
[331649925,1720605046790,-300.0,0.00013726,2]
[331649926,1720605046799,-12780.12103869,0.00013736,2]
[331649927,1720605046809,-86357.8802071,0.00013752,2]